bitfinex/quotes_BTCUSD_20241211
["timestamp","ask_amount","ask_price","bid_price","bid_amount"]
[1733917370873,0.0208068,98297.0,98296.0,0.51910357]
[1733917371083,0.02080678,98297.0,98296.0,0.52210357]
[1733917372423,0.02080933,98297.0,98296.0,0.52210357]
[1733917373581,0.02080933,98297.0,98296.0,0.51910357]
[1733917373914,0.02080933,98297.0,98296.0,0.52210357]
[1733917374124,0.01980933,98297.0,98296.0,0.51610357]
[1733917374319,0.02080933,98297.0,98296.0,0.52210357]
[1733917374555,0.02080933,98297.0,98296.0,0.51910357]
[1733917374731,0.01980933,98297.0,98296.0,0.51310357]
[1733917375074,0.02080933,98297.0,98296.0,0.51910357]
[1733917375289,0.02080933,98297.0,98296.0,0.52210357]
[1733917380680,0.001,98297.0,98296.0,0.52210357]
[1733917380883,0.02080859,98297.0,98296.0,0.52210357]
[1733917381086,0.02080859,98297.0,98296.0,0.01443716]
[1733917382115,0.02080859,98297.0,98291.0,0.50766641]
[1733917382116,0.15,98296.0,98291.0,0.50766641]
[1733917382319,0.13022345,98295.0,98291.0,0.50766641]
[1733917382519,0.02489821,98294.0,98291.0,0.50766641]
[1733917382697,0.02489821,98293.0,98291.0,0.50766641]
[1733917382926,0.00761962,98292.0,98291.0,0.50766641]
[1733917383113,0.02490138,98292.0,98291.0,0.50766641]
[1733917384136,0.02490138,98292.0,98291.0,0.004]
[1733917384438,0.02490138,98292.0,98291.0,0.002]
[1733917384648,0.02490138,98292.0,98291.0,0.001]
[1733917384851,0.02490138,98292.0,98291.0,0.002]
[1733917384996,0.02490138,98292.0,98291.0,0.001]
[1733917385197,0.02490138,98292.0,98291.0,0.002]
[1733917385437,0.04394468,98292.0,98291.0,0.002]
[1733917385637,0.04394468,98292.0,98291.0,0.001]
[1733917386041,0.04394477,98292.0,98291.0,0.001]
[1733917386239,0.04394477,98292.0,98290.0,0.0001716]
[1733917386441,0.15,98294.0,98290.0,0.0001716]
[1733917386442,0.04394477,98291.0,98290.0,0.0001716]
[1733917388216,0.04394477,98291.0,98290.0,0.0011716]
[1733917389000,0.01981102,98291.0,98290.0,0.0011716]
[1733917389200,0.0198,98291.0,98290.0,0.0011716]
[1733917389559,0.0198,98291.0,98290.0,0.00899137]
[1733917391007,0.01980046,98291.0,98290.0,0.00899137]
[1733917391340,0.01980085,98291.0,98290.0,0.00899137]
[1733917391952,0.01980085,98291.0,98290.0,0.09039137]
[1733917392154,0.00761571,98291.0,98290.0,0.09039137]
[1733917392566,0.01903847,98292.0,98290.0,0.09039137]
[1733917392772,0.0076171,98291.0,98290.0,0.09039137]
[1733917393131,0.0076171,98291.0,98290.0,0.59805778]
[1733917393558,0.0076171,98291.0,98290.0,0.59705778]
[1733917394313,0.0076171,98291.0,98290.0,0.59605778]
[1733917394702,0.0076171,98291.0,98290.0,0.59805778]
[1733917394932,0.0076171,98291.0,98290.0,0.59705778]
[1733917395334,0.0076171,98291.0,98290.0,0.59805778]
[1733917395888,0.0076182,98291.0,98290.0,0.59805778]
[1733917397529,0.0076182,98291.0,98290.0,0.59705778]
[1733917397722,0.0076182,98291.0,98290.0,0.59805778]
[1733917398184,0.0076182,98291.0,98290.0,0.59705778]
[1733917398398,0.0076182,98291.0,98290.0,0.59805778]
[1733917398847,0.0076182,98291.0,98290.0,0.59705778]
[1733917399044,0.0076182,98291.0,98290.0,0.59905778]
[1733917399156,0.0076182,98291.0,98290.0,0.59805778]
[1733917399355,8.59e-05,98300.0,98290.0,0.59805778]
[1733917399606,0.019811,98299.0,98290.0,0.60105778]
[1733917399774,0.01981102,98298.0,98290.0,0.60105778]
[1733917399976,0.01981102,98297.0,98290.0,0.60105778]
[1733917400177,0.01981102,98296.0,98290.0,0.60105778]
[1733917400401,0.01981102,98295.0,98290.0,0.59905778]
[1733917400671,0.01981102,98294.0,98290.0,0.59905778]
[1733917400843,0.01981102,98293.0,98290.0,0.60105778]
[1733917401097,0.01981102,98292.0,98290.0,0.60105778]
[1733917401300,0.00761962,98291.0,98290.0,0.59605778]
[1733917401683,0.00761962,98291.0,98290.0,0.59705778]
[1733917402063,0.00761962,98291.0,98290.0,0.59905778]
[1733917402303,0.00761962,98291.0,98290.0,0.59705778]
[1733917402427,0.00761962,98291.0,98290.0,0.60105778]
[1733917402823,0.00762021,98291.0,98290.0,0.60105778]
[1733917403538,0.00762021,98291.0,98290.0,0.60005778]
[1733917403938,0.00762021,98291.0,98290.0,0.60205778]
[1733917406077,0.00762074,98291.0,98290.0,0.60205778]
[1733917407462,0.01981464,98291.0,98290.0,0.60205778]
[1733917407831,0.01981464,98291.0,98290.0,0.59605778]
[1733917408044,0.01981464,98291.0,98290.0,0.59905778]
[1733917408521,0.01981464,98291.0,98290.0,0.59605778]
[1733917408744,0.01981464,98291.0,98290.0,0.59905778]
[1733917409209,0.01981569,98291.0,98290.0,0.59905778]
[1733917409766,0.01981569,98291.0,98290.0,0.60005778]
[1733917411095,0.01981569,98291.0,98290.0,0.51865778]
[1733917411424,0.03887018,98291.0,98290.0,0.51865778]
[1733917412055,0.03887018,98291.0,98290.0,0.4957522]
[1733917412056,0.04395997,98291.0,98290.0,0.4957522]
[1733917412450,0.24154055,98300.0,98290.0,0.4957522]
[1733917412451,0.01005894,98293.0,98290.0,0.4957522]
[1733917412651,0.02490858,98292.0,98290.0,0.4957522]
[1733917412862,0.02490858,98291.0,98290.0,0.4947522]
[1733917413066,0.01981828,98291.0,98290.0,0.4947522]
[1733917413204,0.02490858,98291.0,98290.0,0.4947522]
[1733917413803,0.01981828,98291.0,98290.0,0.4917522]
[1733917414003,0.01981828,98291.0,98290.0,0.4927522]
[1733917414224,0.01981828,98291.0,98290.0,0.001]
[1733917414834,0.02490858,98291.0,98290.0,0.001]
[1733917415129,0.01981828,98291.0,98290.0,0.001]
[1733917415583,0.02490858,98291.0,98290.0,0.001]
[1733917415804,0.01905604,98293.0,98290.0,0.001]
[1733917415964,0.0076232,98291.0,98290.0,0.001]
[1733917416329,0.01982032,98291.0,98290.0,0.001]
[1733917417634,0.02491064,98291.0,98290.0,0.001]
[1733917417835,0.01982032,98291.0,98290.0,0.001]
[1733917418678,0.02491064,98291.0,98290.0,0.001]
[1733917419058,0.02491714,98291.0,98290.0,0.001]
[1733917419216,0.15,98298.0,98290.0,0.001]
[1733917419425,0.01906403,98294.0,98290.0,0.001]
[1733917419644,0.14040965,98297.0,98290.0,0.001]
[1733917419645,0.01271595,98293.0,98290.0,0.001]
[1733917419813,0.02491693,98292.0,98290.0,0.001]
[1733917420023,0.02491693,98291.0,98290.0,0.001]
[1733917420414,0.02491693,98291.0,98285.0,0.4917522]
[1733917420683,0.02491693,98290.0,98285.0,0.4917522]
[1733917420874,0.02491693,98289.0,98285.0,0.4917522]
[1733917421081,0.01982659,98288.0,98285.0,0.4917522]
[1733917421308,0.01982659,98287.0,98285.0,0.4917522]
[1733917421463,0.01982659,98286.0,98285.0,0.4917522]
[1733917421793,0.03889062,98286.0,98285.0,0.4917522]
[1733917422771,0.01982659,98286.0,98285.0,0.4917522]
[1733917423030,0.03888907,98286.0,98285.0,0.4917522]
[1733917423205,0.03846907,98286.0,98285.0,0.4917522]
[1733917423358,0.03846907,98286.0,98285.0,0.4927522]
[1733917423559,0.03846907,98286.0,98285.0,0.4917522]
[1733917423949,0.03846907,98286.0,98285.0,0.4927522]
[1733917424152,0.03846907,98286.0,98285.0,0.4917522]
[1733917424600,0.03846907,98286.0,98285.0,0.4937522]
[1733917425408,0.01940659,98286.0,98285.0,0.4937522]
[1733917425586,0.0384678,98286.0,98285.0,0.4937522]
[1733917426159,0.01940659,98286.0,98285.0,0.4937522]
[1733917427122,0.0384678,98286.0,98285.0,0.4937522]
[1733917428639,0.03846795,98286.0,98285.0,0.4937522]
[1733917429274,0.03846795,98286.0,98285.0,0.4917522]
[1733917429480,0.03846795,98286.0,98285.0,0.4927522]
[1733917429639,0.01940659,98286.0,98285.0,0.5769522]
[1733917429835,0.01940659,98286.0,98285.0,0.6226522]
[1733917430036,0.00720561,98286.0,98285.0,0.6226522]
[1733917430556,0.00720561,98286.0,98285.0,0.6196522]
[1733917430782,0.00720561,98286.0,98285.0,0.6206522]
[1733917430996,0.01016748,98303.0,98286.0,0.0815]
[1733917430997,0.01906109,98297.0,98286.0,0.0815]
[1733917431215,0.0121991,98296.0,98286.0,0.0815]
[1733917431360,0.19049823,98305.0,98286.0,0.0815]
[1733917431361,0.0121991,98295.0,98286.0,0.0815]
[1733917431565,0.0121991,98294.0,98286.0,0.0815]
[1733917431760,0.15,98303.0,98286.0,0.0815]
[1733917431971,0.01219948,98302.0,98286.0,0.0815]
[1733917432188,0.01219948,98301.0,98287.0,0.5692522]
[1733917432409,0.01219948,98300.0,98288.0,0.0775]
[1733917432615,0.004,98296.0,98288.0,0.0775]
[1733917432866,0.01219948,98295.0,98288.0,0.0775]
[1733917433033,0.01219948,98294.0,98288.0,0.0775]
[1733917433211,0.01219948,98293.0,98288.0,0.0775]
[1733917433424,0.01219948,98292.0,98288.0,0.0775]
[1733917433694,0.01219948,98291.0,98288.0,0.0775]
[1733917433867,0.01219948,98290.0,98288.0,0.0775]
[1733917434069,0.01219948,98289.0,98288.0,0.0775]
[1733917434276,0.01219948,98289.0,98288.0,0.0795]
[1733917435255,0.01219948,98289.0,98288.0,0.5722522]
[1733917435583,0.01219948,98289.0,98288.0,0.5702522]
[1733917435752,0.01219948,98289.0,98288.0,0.5722522]
[1733917435978,0.01219948,98289.0,98288.0,0.5712522]
[1733917436401,0.01219948,98289.0,98288.0,0.5752522]
[1733917438278,0.01220321,98289.0,98288.0,0.5752522]
[1733917443088,0.01983121,98289.0,98288.0,0.5752522]
[1733917447049,8.59e-05,98290.0,98288.0,0.5752522]
[1733917447292,0.01983462,98289.0,98288.0,0.5752522]
[1733917447629,0.01983462,98289.0,98288.0,0.5712522]
[1733917447835,0.01983462,98289.0,98288.0,0.5692522]
[1733917448034,0.01983462,98289.0,98288.0,0.5732522]
[1733917448239,0.01983462,98289.0,98288.0,0.55034696]
[1733917448694,0.01983462,98289.0,98288.0,0.54934696]
[1733917448900,0.01983462,98289.0,98288.0,0.55034696]
[1733917449306,0.01983462,98289.0,98288.0,0.54734696]
[1733917449507,0.01983462,98289.0,98288.0,0.55034696]
[1733917449922,0.01983462,98289.0,98288.0,0.54734696]
[1733917450069,0.01983462,98289.0,98288.0,0.55034696]
[1733917450272,0.01983517,98289.0,98288.0,0.55034696]
[1733917450449,0.01983517,98289.0,98288.0,0.55234696]
[1733917450855,0.01983517,98289.0,98288.0,0.55716834]
[1733917451266,0.01983517,98289.0,98288.0,0.55916834]
[1733917451715,0.01983517,98289.0,98288.0,0.55730027]
[1733917456590,0.01983517,98289.0,98288.0,0.55530027]
[1733917456796,0.01983517,98289.0,98288.0,0.55130027]
[1733917457026,0.01983517,98289.0,98288.0,0.55330027]
[1733917457250,0.01983517,98289.0,98288.0,0.55730027]
[1733917457457,0.01983517,98289.0,98288.0,0.55130027]
[1733917457887,0.01983517,98289.0,98288.0,0.55330027]
[1733917458736,0.01983517,98289.0,98288.0,0.55730027]
[1733917458937,0.01983517,98289.0,98288.0,0.55330027]
[1733917459141,0.01983517,98289.0,98288.0,0.55730027]
[1733917459363,0.01983517,98289.0,98288.0,0.55530027]
[1733917459569,0.01983517,98289.0,98288.0,0.55730027]
[1733917460199,0.01983517,98289.0,98288.0,0.55530027]
[1733917460429,0.01983517,98289.0,98288.0,0.55730027]
[1733917462853,0.01983517,98289.0,98288.0,0.55530027]
[1733917463058,0.01983517,98289.0,98288.0,0.55130027]
[1733917463259,0.01983517,98289.0,98288.0,0.55330027]
[1733917463946,0.02493743,98289.0,98288.0,0.55330027]
[1733917465601,0.01984739,98289.0,98288.0,0.55330027]
[1733917466005,0.03845071,98289.0,98288.0,0.55330027]
[1733917466583,0.03845071,98289.0,98288.0,0.55130027]
[1733917466784,0.03845071,98289.0,98288.0,0.55230027]
[1733917467041,0.04354074,98289.0,98288.0,0.55230027]
[1733917467331,0.03845071,98289.0,98288.0,0.55230027]
[1733917467633,0.01984744,98289.0,98288.0,0.55330027]
[1733917467989,0.01984744,98289.0,98288.0,0.55230027]
[1733917468399,0.02493756,98289.0,98288.0,0.55330027]
[1733917468607,0.02493756,98289.0,98288.0,0.49770551]
[1733917469033,0.02493756,98289.0,98288.0,0.49870551]
[1733917470425,0.02493584,98289.0,98288.0,0.49870551]
[1733917470622,0.04401991,98289.0,98288.0,0.49870551]
[1733917471220,0.04401991,98289.0,98288.0,0.00695331]
[1733917473544,0.01908407,98289.0,98288.0,0.00695331]
[1733917473745,0.04401552,98289.0,98288.0,0.00695331]
[1733917474835,0.14934076,98289.0,98288.0,0.00695331]
[1733917474961,0.37875711,98289.0,98288.0,0.00695331]
[1733917475161,0.46923898,98289.0,98288.0,0.002]
[1733917475360,0.15,98288.0,98284.0,0.00055]
[1733917475613,0.01016841,98285.0,98284.0,0.00055]
[1733917475751,0.16078539,98285.0,98284.0,0.00055]
[1733917475956,0.16180174,98285.0,98284.0,0.00055]
[1733917476624,0.18088581,98285.0,98284.0,0.00055]
[1733917476775,0.16180174,98285.0,98284.0,0.00055]
[1733917476977,0.18086263,98285.0,98284.0,0.00055]
[1733917477171,0.13687029,98285.0,98284.0,0.00055]
[1733917477380,0.14856918,98285.0,98284.0,0.00055]
[1733917477580,0.13023945,98285.0,98284.0,0.00055]
[1733917477985,0.19225065,98285.0,98284.0,0.00055]
[1733917478211,0.21131154,98285.0,98284.0,0.00055]
[1733917478541,0.21029519,98285.0,98284.0,0.00055]
[1733917479200,0.21229519,98285.0,98284.0,0.00055]
[1733917479598,0.21129519,98285.0,98284.0,0.00055]
[1733917479822,0.18279777,98285.0,98284.0,0.00055]
[1733917480025,0.18381412,98285.0,98284.0,0.00055]
[1733917480228,0.18280293,98285.0,98284.0,0.00055]
[1733917480436,0.18580293,98285.0,98284.0,0.00055]
[1733917480830,0.18480293,98285.0,98284.0,0.00055]
[1733917481031,0.18378658,98285.0,98284.0,0.00055]
[1733917481209,0.18478658,98285.0,98284.0,0.00055]
[1733917481594,0.18078658,98285.0,98284.0,0.00055]
[1733917481795,0.18178658,98285.0,98284.0,0.00055]
[1733917482228,0.18078658,98285.0,98284.0,0.00055]
[1733917482502,0.18278658,98285.0,98284.0,0.00055]
[1733917482699,0.18078658,98285.0,98284.0,0.00055]
[1733917482950,0.17978658,98285.0,98284.0,0.00055]
[1733917483099,0.18278658,98285.0,98284.0,0.00055]
[1733917483494,0.17868828,98285.0,98284.0,0.00055]
[1733917483710,0.17868828,98285.0,98280.0,2.763e-05]
[1733917483711,0.18479555,98285.0,98280.0,2.763e-05]
[1733917483894,0.13759,98284.0,98280.0,2.763e-05]
[1733917484091,0.01980472,98283.0,98280.0,2.763e-05]
[1733917484312,0.02082107,98282.0,98280.0,2.763e-05]
[1733917484502,0.01980472,98281.0,98280.0,2.763e-05]
[1733917485820,0.02080472,98281.0,98280.0,2.763e-05]
[1733917486065,0.01980472,98281.0,98280.0,2.763e-05]
[1733917486271,0.12714631,98281.0,98280.0,2.763e-05]
[1733917486478,0.12814631,98281.0,98280.0,2.763e-05]
[1733917487018,0.10834159,98281.0,98280.0,2.763e-05]
[1733917487218,0.12813751,98281.0,98280.0,2.763e-05]
[1733917487464,0.12713751,98281.0,98280.0,2.763e-05]
[1733917487868,0.12813751,98281.0,98280.0,2.763e-05]
[1733917488215,0.02179592,98281.0,98280.0,2.763e-05]
[1733917488538,0.02179592,98281.0,98280.0,0.00501333]
[1733917488757,0.02079592,98281.0,98280.0,2.763e-05]
[1733917488980,0.02079592,98281.0,98280.0,0.00501333]
[1733917489159,0.01979592,98281.0,98280.0,2.763e-05]
[1733917489355,0.02079592,98281.0,98280.0,2.763e-05]
[1733917489580,0.01979592,98281.0,98280.0,2.763e-05]
[1733917489894,0.01979592,98281.0,98280.0,0.00102763]
[1733917490119,0.01979659,98281.0,98280.0,0.00102763]
[1733917491496,0.01979659,98281.0,98280.0,2.763e-05]
[1733917491705,0.01979659,98281.0,98280.0,0.00102763]
[1733917491876,0.01979659,98281.0,98280.0,2.763e-05]
[1733917492305,0.01979659,98281.0,98280.0,0.00102763]
[1733917493521,0.00509098,98286.0,98280.0,0.00102763]
[1733917493732,0.10532524,98285.0,98280.0,0.00102763]
[1733917494581,0.10532524,98285.0,98280.0,2.763e-05]
[1733917494938,0.10632524,98285.0,98280.0,2.763e-05]
[1733917495958,0.10732524,98285.0,98280.0,2.763e-05]
[1733917498683,0.10632524,98285.0,98273.0,0.4917522]
[1733917498884,0.10632524,98285.0,98274.0,0.00499958]
[1733917499105,0.10732524,98285.0,98274.0,0.00499958]
[1733917499517,0.0188497,98284.0,98274.0,0.00499958]
[1733917499728,0.12417494,98283.0,98274.0,0.00499958]
[1733917499923,0.10532524,98283.0,98274.0,0.00499958]
[1733917500142,0.12417494,98283.0,98274.0,0.00499958]
[1733917500347,0.0188497,98282.0,98274.0,0.00499958]
[1733917500560,0.10532524,98281.0,98274.0,0.00499958]
[1733917501237,0.001,98284.0,98279.0,0.15]
[1733917501437,0.00055235,98286.0,98278.0,0.4917522]
[1733917501438,0.00055235,98286.0,98285.0,0.173]
[1733917501644,8.58e-05,98300.0,98289.0,0.2968]
[1733917501833,8.58e-05,98300.0,98289.0,0.53913408]
[1733917502071,8.58e-05,98300.0,98289.0,0.88217366]
[1733917502277,8.58e-05,98300.0,98289.0,0.74516482]
[1733917502696,8.58e-05,98300.0,98289.0,0.40799939]
[1733917503136,8.58e-05,98300.0,98289.0,0.42809003]
[1733917503921,0.0010859,98290.0,98289.0,0.43409003]
[1733917504327,0.0020859,98290.0,98289.0,0.44109003]
[1733917504529,8.59e-05,98290.0,98289.0,0.51936898]
[1733917504859,0.0020859,98290.0,98289.0,0.53236898]
[1733917505000,0.0020859,98290.0,98289.0,0.53555375]
[1733917505399,0.0030859,98290.0,98289.0,0.54255375]
[1733917505601,0.0010859,98290.0,98289.0,0.4442748]
[1733917506041,0.0010859,98290.0,98289.0,0.4452748]
[1733917506199,0.0020859,98290.0,98289.0,0.4512748]
[1733917506882,0.0010859,98290.0,98289.0,0.4452748]
[1733917507121,0.0020859,98290.0,98289.0,0.4522748]
[1733917507295,0.0010859,98290.0,98289.0,0.937027]
[1733917507511,0.0020859,98290.0,98289.0,0.944027]
[1733917512521,0.0010859,98290.0,98289.0,0.937027]
[1733917512729,0.0010859,98290.0,98289.0,0.944027]
[1733917512928,0.0020859,98290.0,98289.0,0.944027]
[1733917513345,8.59e-05,98290.0,98289.0,0.930027]
[1733917513561,0.0010859,98290.0,98289.0,0.937027]
[1733917513757,0.0020859,98290.0,98289.0,0.946027]
[1733917514419,0.0010859,98290.0,98289.0,0.937027]
[1733917514836,0.0020859,98290.0,98289.0,0.946027]
[1733917515209,0.0010859,98290.0,98289.0,0.939027]
[1733917515423,0.0010859,98290.0,98289.0,0.945027]
[1733917515746,0.0010859,98290.0,98289.0,1.095027]
[1733917515953,8.58e-05,98310.0,98309.0,0.15]
[1733917516154,8.58e-05,98310.0,98309.0,0.40562524]
[1733917516620,8.58e-05,98310.0,98309.0,0.41141743]
[1733917517454,0.0010858,98310.0,98309.0,0.42041743]
[1733917517628,0.0010858,98310.0,98309.0,0.41141743]
[1733917517850,0.0010858,98310.0,98309.0,0.42041743]
[1733917518079,0.0020858,98310.0,98309.0,0.42041743]
[1733917518282,0.0020858,98310.0,98309.0,0.43044843]
[1733917518477,0.0020858,98310.0,98309.0,0.43644843]
[1733917518804,8.58e-05,98310.0,98309.0,0.42744843]
[1733917519008,8.58e-05,98310.0,98309.0,0.42144843]
[1733917519416,8.58e-05,98310.0,98309.0,0.91911483]
[1733917519619,8.58e-05,98310.0,98309.0,0.93957944]
[1733917519821,8.58e-05,98310.0,98309.0,0.93357944]
[1733917520031,8.58e-05,98310.0,98309.0,0.94757944]
[1733917520233,8.58e-05,98310.0,98309.0,0.93857944]
[1733917520674,8.58e-05,98310.0,98309.0,0.94757944]
[1733917520879,8.58e-05,98310.0,98309.0,0.93857944]
[1733917521287,8.58e-05,98310.0,98309.0,0.94257944]
[1733917521722,8.58e-05,98310.0,98309.0,0.94857944]
[1733917522133,8.58e-05,98310.0,98309.0,0.94257944]
[1733917522516,8.58e-05,98310.0,98309.0,0.94857944]
[1733917530762,8.59e-05,98330.0,98319.0,0.3022]
[1733917531073,0.01896854,98345.0,98336.0,0.15]
[1733917531271,0.00760522,98344.0,98338.0,0.4916664]
[1733917531464,8.59e-05,98350.0,98338.0,0.4916664]
[1733917531710,8.59e-05,98350.0,98339.0,0.00570356]
[1733917531711,0.01974795,98349.0,98339.0,0.00570356]
[1733917531916,0.14884795,98348.0,98339.0,0.00570356]
[1733917532123,0.12507319,98347.0,98339.0,0.00570356]
[1733917532337,0.01974795,98346.0,98339.0,0.00570356]
[1733917532539,0.01974795,98345.0,98339.0,0.00570356]
[1733917532747,0.01974795,98344.0,98339.0,0.00570356]
[1733917532950,0.01974795,98343.0,98339.0,0.00570356]
[1733917533150,0.15,98346.0,98339.0,0.00570356]
[1733917533151,0.01974795,98342.0,98339.0,0.00570356]
[1733917533365,0.0076076,98341.0,98339.0,0.00570356]
[1733917533567,0.0076076,98340.0,98339.0,0.00570356]
[1733917534363,0.0076076,98340.0,98339.0,0.00970356]
[1733917534582,0.0076076,98340.0,98337.0,0.4916664]
[1733917534780,0.01214035,98341.0,98339.0,0.00473812]
[1733917534984,0.00760608,98340.0,98339.0,0.004]
[1733917535402,0.0076063,98340.0,98339.0,0.004]
[1733917535811,0.0076063,98340.0,98337.0,0.47847578]
[1733917535945,0.0076063,98339.0,98337.0,0.47847578]
[1733917536148,0.0076063,98338.0,98337.0,0.47847578]
[1733917537213,0.0076063,98338.0,98337.0,0.47947578]
[1733917537530,0.0076063,98338.0,98337.0,0.001]
[1733917537850,0.0076063,98338.0,98336.0,0.01994359]
[1733917538049,0.01225598,98340.0,98337.0,0.007]
[1733917538251,0.01977682,98339.0,98337.0,0.007]
[1733917538451,0.00760674,98338.0,98337.0,0.007]
[1733917538751,0.02662247,98338.0,98320.0,0.47847578]
[1733917539097,0.00760674,98337.0,98321.0,0.023]
[1733917539304,0.01901573,98338.0,98321.0,0.023]
[1733917539305,0.00760674,98336.0,98321.0,0.023]
[1733917539508,0.00760674,98335.0,98321.0,0.023]
[1733917539707,0.00760674,98334.0,98321.0,0.023]
[1733917539844,0.01901573,98338.0,98321.0,0.023]
[1733917539845,0.00760674,98333.0,98321.0,0.023]
[1733917540049,0.00760674,98332.0,98321.0,0.023]
[1733917540246,0.01901573,98338.0,98321.0,0.023]
[1733917540247,0.00760674,98331.0,98321.0,0.023]
[1733917540482,0.01901573,98337.0,98322.0,0.47847578]
[1733917540677,0.00760816,98336.0,98322.0,0.47847578]
[1733917540859,0.00760816,98335.0,98322.0,0.47847578]
[1733917541076,0.00760816,98334.0,98322.0,0.47847578]
[1733917541277,0.00760816,98333.0,98322.0,0.47847578]
[1733917541450,0.00760816,98332.0,98322.0,0.47847578]
[1733917541835,0.00760816,98331.0,98322.0,0.47847578]
[1733917541967,0.06161807,98338.0,98322.0,0.48647578]
[1733917541968,0.0616226,98338.0,98322.0,0.48647578]
[1733917542170,0.0616226,98338.0,98330.0,0.02018314]
[1733917542171,0.05020891,98337.0,98330.0,0.02018314]
[1733917542372,0.00760913,98336.0,98331.0,0.00475143]
[1733917542596,0.00760913,98335.0,98330.0,0.02018314]
[1733917542934,0.00760913,98334.0,98332.0,0.00474962]
[1733917543058,0.00760913,98333.0,98331.0,0.00475143]
[1733917543262,0.00760913,98332.0,98330.0,0.02018314]
[1733917543473,0.03044774,98339.0,98331.0,0.47847578]
[1733917543693,0.03882089,98338.0,98331.0,0.47847578]
[1733917543893,0.03882089,98337.0,98331.0,0.47847578]
[1733917544262,0.06927644,98336.0,98332.0,0.007]
[1733917544470,0.02664179,98335.0,98331.0,0.48147578]
[1733917544688,0.02664179,98334.0,98331.0,0.48647578]
[1733917544890,0.02664179,98333.0,98331.0,0.48347578]
[1733917545063,0.00761194,98332.0,98331.0,0.48047578]
[1733917545377,0.02664665,98332.0,98331.0,0.48047578]
[1733917545612,0.02665734,98332.0,98331.0,0.48047578]
[1733917546330,0.02665734,98332.0,98331.0,0.48547578]
[1733917546532,0.00761638,98332.0,98331.0,0.48047578]
[1733917546738,0.00761638,98332.0,98331.0,0.47847578]
[1733917546962,0.00761638,98332.0,98331.0,0.48847578]
[1733917547223,0.00761638,98332.0,98331.0,0.48047578]
[1733917547640,0.00761638,98332.0,98331.0,0.48747578]
[1733917548012,0.01980328,98332.0,98331.0,0.009]
[1733917548215,0.29417055,98332.0,98331.0,0.014]
[1733917548430,0.23844531,98332.0,98331.0,0.00249273]
[1733917549378,0.38464453,98332.0,98331.0,0.00249273]
[1733917549581,0.38464453,98332.0,98322.0,0.45806764]
[1733917549779,0.01015634,98326.0,98323.0,0.00477989]
[1733917550186,0.01015634,98326.0,98310.0,0.00087727]
[1733917550187,0.01980328,98325.0,98310.0,0.00087727]
[1733917550341,0.01980328,98324.0,98310.0,0.00087727]
[1733917550546,0.01980328,98323.0,98311.0,0.00480161]
[1733917550752,0.03884531,98322.0,98311.0,0.00567887]
[1733917550957,0.03046554,98327.0,98311.0,0.00567887]
[1733917550958,0.03884531,98321.0,98311.0,0.00567887]
[1733917551161,0.01980328,98320.0,98311.0,0.00567887]
[1733917551366,0.01980328,98319.0,98311.0,0.00567887]
[1733917551521,0.01904203,98321.0,98311.0,0.00567887]
[1733917551522,0.01980328,98318.0,98311.0,0.00567887]
[1733917551718,0.03882579,98317.0,98311.0,0.00567887]
[1733917551943,0.01979354,98316.0,98311.0,0.00480161]
[1733917552143,0.0076129,98315.0,98309.0,0.45806764]
[1733917552349,0.0076129,98314.0,98310.0,0.00480342]
[1733917552562,0.001,98322.0,98310.0,0.00480342]
[1733917552563,0.0076129,98313.0,98310.0,0.00480342]
[1733917552761,0.0076129,98312.0,98303.0,0.45806764]
[1733917552978,0.11001289,98316.0,98304.0,0.00481428]
[1733917552979,0.01979354,98311.0,98304.0,0.00481428]
[1733917553227,0.0076129,98310.0,98304.0,0.00481428]
[1733917553346,0.0076129,98309.0,98304.0,0.00481428]
[1733917553552,0.01903225,98315.0,98304.0,0.00481428]
[1733917553553,0.0076129,98308.0,98304.0,0.00481428]
[1733917553766,0.01903225,98315.0,98304.0,0.00481428]
[1733917553767,0.0076129,98307.0,98304.0,0.00481428]
[1733917554015,0.01903225,98315.0,98304.0,0.00481428]
[1733917554173,0.00760855,98314.0,98304.0,0.00481428]
[1733917554379,0.00760855,98313.0,98304.0,0.00781428]
[1733917554642,0.18121289,98320.0,98304.0,0.00781428]
[1733917554643,0.00760855,98312.0,98304.0,0.00781428]
[1733917554783,0.00760855,98311.0,98304.0,0.00881428]
[1733917554980,0.00760855,98310.0,98304.0,0.00881428]
[1733917555192,0.00760855,98309.0,98304.0,0.00881428]
[1733917555462,0.12433894,98319.0,98304.0,0.00881428]
[1733917555715,0.00760548,98318.0,98304.0,0.00581428]
[1733917555911,0.12433894,98319.0,98304.0,0.00581428]
[1733917555912,0.11293072,98317.0,98304.0,0.00581428]
[1733917556135,0.11293072,98317.0,98304.0,0.005]
[1733917556136,0.00760548,98316.0,98304.0,0.005]
[1733917556336,0.00760548,98315.0,98303.0,0.45806764]
[1733917556451,0.00760548,98314.0,98303.0,0.45806764]
[1733917556651,0.00760548,98313.0,98304.0,0.00481944]
[1733917556899,0.00760548,98312.0,98304.0,0.00481944]
[1733917557089,0.00760548,98311.0,98304.0,0.00481944]
[1733917557288,0.00760548,98315.0,98304.0,0.00481944]
[1733917557538,0.00760548,98314.0,98304.0,0.00481944]
[1733917557737,0.00760548,98313.0,98304.0,0.00481944]
[1733917557951,0.00760548,98312.0,98304.0,0.00481944]
[1733917558182,0.00760548,98311.0,98305.0,0.0821]
[1733917558392,0.00760232,98319.0,98306.0,0.00481582]
[1733917558597,0.00016561,98322.0,98307.0,0.45806764]
[1733917558598,0.00760232,98318.0,98307.0,0.45806764]
[1733917558749,0.00760232,98317.0,98307.0,0.45806764]
[1733917558955,0.00760232,98316.0,98308.0,0.0048122]
[1733917559151,0.00760232,98315.0,98308.0,0.0048122]
[1733917559329,0.00760232,98314.0,98308.0,0.0048122]
[1733917559703,0.00760232,98321.0,98308.0,0.0048122]
[1733917559883,0.00760232,98320.0,98308.0,0.0048122]
[1733917560085,0.00760232,98319.0,98308.0,0.0048122]
[1733917560286,0.00760232,98318.0,98308.0,0.0048122]
[1733917560490,0.00016561,98322.0,98308.0,0.0048122]
[1733917560491,0.001,98314.0,98308.0,0.0048122]
[1733917560642,0.00760232,98313.0,98308.0,0.0048122]
[1733917560866,0.01216372,98321.0,98308.0,0.0048122]
[1733917560867,0.00760232,98320.0,98308.0,0.0048122]
[1733917561067,0.00760232,98319.0,98308.0,0.0048122]
[1733917561267,0.00860232,98318.0,98308.0,0.0048122]
[1733917561471,0.00860232,98318.0,98309.0,0.45806764]
[1733917561472,0.00760232,98317.0,98309.0,0.45806764]
[1733917561671,0.00760232,98316.0,98309.0,0.45806764]
[1733917561855,0.00860232,98318.0,98310.0,0.00482562]
[1733917562103,0.001,98318.0,98311.0,0.1298]
[1733917562307,0.001,98318.0,98312.0,0.004822]
[1733917562512,0.00016561,98322.0,98312.0,0.004822]
[1733917562731,0.002,98320.0,98312.0,0.004822]
[1733917563137,0.00016561,98322.0,98312.0,0.004822]
[1733917563551,0.002,98318.0,98312.0,0.004822]